bitfinex-derivatives/quotes_BNBF0:USTF0_20250401
["timestamp","ask_amount","ask_price","bid_price","bid_amount"]
[1743510495113,1.08905435,611.67,610.0,0.32786885]
[1743510495411,1.08905435,611.66,610.01,0.27186276]
[1743510495611,1.08905435,611.66,610.03,0.32785272]
[1743510495810,0.28478138,611.69,610.04,0.27186276]
[1743510496115,0.28478138,611.69,610.06,0.3278366]
[1743510496318,1.68105435,611.74,610.07,0.27194903]
[1743510496517,1.68105435,611.74,610.09,0.32782048]
[1743510496711,1.68105435,611.74,610.1,0.27194903]
[1743510496915,0.28477322,611.73,610.1,0.27194903]
[1743510497111,2.42287642,611.73,610.1,0.27194903]
[1743510497315,3.51193077,611.73,610.1,0.27194903]
[1743510497511,3.51193077,611.73,610.12,0.32780436]
[1743510497712,3.51193077,611.73,610.13,0.27196091]
[1743510497919,3.51193077,611.73,610.15,0.32778824]
[1743510498116,3.51193077,611.73,610.16,0.27196091]
[1743510498317,3.51193077,611.73,610.18,0.32777213]
[1743510498515,3.51193077,611.73,610.19,0.27196091]
[1743510498816,3.51193077,611.73,610.21,0.32775601]
[1743510499018,3.51193077,611.73,610.22,0.27196091]
[1743510499212,3.51193077,611.73,610.24,0.3277399]
[1743510499411,2.44315755,611.73,610.25,0.27196091]
[1743510499612,1.63889507,611.72,610.27,0.32772379]
[1743510499819,1.08905435,611.71,610.28,0.27196091]
[1743510500116,1.08905435,611.7,610.3,0.32770768]
[1743510500317,1.3541032,611.69,610.31,0.27196091]
[1743510500517,1.3541032,611.69,610.33,0.32769157]
[1743510500717,1.95505435,611.7,610.34,0.27196091]
[1743510500718,2.44315755,611.68,610.34,0.27196091]
[1743510501019,1.08905435,611.68,610.35,0.32768083]
[1743510501320,1.08905435,611.67,610.36,0.27196091]
[1743510501516,1.08905435,611.67,610.37,0.3276701]
[1743510501712,1.35315746,611.66,610.38,0.27196091]
[1743510501916,1.08905435,611.65,610.39,0.32765936]
[1743510502113,1.35315746,611.64,610.4,0.27196091]
[1743510502418,2.44221181,611.63,610.41,0.5999213]
[1743510502719,1.35315746,611.62,610.42,0.59991594]
[1743510502919,2.44221181,611.61,610.43,0.59991057]
[1743510503219,2.11215746,611.6,610.44,0.5999052]
[1743510503418,2.44221181,611.59,610.45,0.59989984]
[1743510503619,1.35315746,611.58,610.46,0.27227268]
[1743510503813,1.35315746,611.57,610.46,0.59989447]
[1743510504120,1.35315746,611.56,610.47,0.27227268]
[1743510504319,2.44221181,611.55,610.47,0.27227268]
[1743510504615,2.44221181,611.54,610.47,0.27227268]
[1743510504819,1.35315746,611.53,610.47,0.27227268]
[1743510505016,1.35315746,611.52,610.47,0.27227268]
[1743510505212,1.35315746,611.51,610.47,0.27227268]
[1743510505519,2.44221181,611.5,610.47,0.27227268]
[1743510505720,1.35315746,611.49,610.47,0.27227268]
[1743510505914,2.44221181,611.48,610.47,0.27227268]
[1743510506111,1.35315746,611.47,610.47,0.27227268]
[1743510506316,1.35315746,611.46,610.47,0.27227268]
[1743510506516,1.35315746,611.45,610.47,0.27227268]
[1743510506911,1.08905435,611.44,610.47,0.27227268]
[1743510507514,1.08905435,611.43,610.47,0.27227268]
[1743510508114,1.08905435,611.42,610.47,0.27227268]
[1743510508717,1.08905435,611.42,610.46,0.32762179]
[1743510508718,1.08905435,611.41,610.48,0.27233444]
[1743510508924,1.08905435,611.41,610.49,0.27233444]
[1743510509223,1.08905435,611.41,610.5,0.27233444]
[1743510509426,1.08905435,611.4,610.51,0.27233444]
[1743510509624,1.08905435,611.4,610.52,0.27233444]
[1743510509825,1.08905435,611.39,610.47,0.27233444]
[1743510510026,1.08905435,611.39,610.48,0.27233444]
[1743510510424,1.08905435,611.38,610.48,0.27233444]
[1743510511120,1.08905435,611.37,610.48,0.27233444]
[1743510511724,1.08905435,611.36,610.47,0.32761642]
[1743510511924,1.08905435,611.36,610.48,0.59992625]
[1743510512224,1.08905435,611.36,610.49,0.59992088]
[1743510512426,1.34880277,611.47,610.5,0.27231519]
[1743510513125,1.08905435,611.46,610.5,0.27231519]
[1743510513326,1.67589411,611.45,608.82,2.50262241]
[1743510513627,1.34880277,611.44,608.95,0.32843418]
[1743510513827,1.34880277,611.43,608.96,0.27267126]
[1743510514028,1.34880277,611.43,608.82,2.50262241]
[1743510514029,1.34880277,611.42,609.08,0.32836409]
[1743510514229,0.32709134,611.45,609.09,0.27267126]
[1743510514230,2.43785712,611.41,609.09,0.27267126]
[1743510514527,1.08905435,611.41,609.2,0.3282994]
[1743510514722,1.08905435,611.4,609.21,0.27267126]
[1743510514928,1.08905435,611.4,609.31,0.32824014]
[1743510515130,1.08905435,611.4,609.32,0.27267126]
[1743510515328,1.08905435,611.4,609.33,0.27267126]
[1743510515528,1.08905435,611.4,608.37,2.50262241]
[1743510515529,1.08905435,611.4,609.43,0.3281755]
[1743510515725,0.28494927,611.39,609.44,0.27267126]
[1743510515929,0.28494927,611.39,609.46,0.32815935]
[1743510516229,0.28494927,611.39,609.47,0.27267126]
[1743510516425,0.28494927,611.39,609.03,0.28494927]
[1743510516426,0.28494927,611.39,609.49,0.3281432]
[1743510516623,0.28494927,611.39,609.5,0.27223418]
[1743510516828,0.28494927,611.39,609.52,0.32812705]
[1743510517029,0.28494927,611.39,609.53,0.27223418]
[1743510517224,0.28494927,611.39,609.55,0.3281109]
[1743510517428,0.693,611.38,609.56,0.27223418]
[1743510517631,0.97788512,611.38,609.57,0.27223418]
[1743510517827,0.97788512,611.38,609.58,0.27223418]
[1743510518029,0.624,611.37,609.6,0.32808398]
[1743510518225,0.624,611.37,609.61,0.27222003]
[1743510518432,0.624,611.37,609.63,0.32806784]
[1743510518626,0.624,611.37,609.64,0.27222003]
[1743510518829,0.624,611.37,609.66,0.3280517]
[1743510519028,0.624,611.37,609.67,0.27222003]
[1743510519230,0.624,611.37,609.69,0.32803555]
[1743510519432,0.624,611.37,609.7,0.27222003]
[1743510519733,0.624,611.37,609.72,0.32801941]
[1743510519929,0.624,611.37,609.73,0.27211432]
[1743510520129,0.624,611.37,609.75,0.32800328]
[1743510520431,0.624,611.37,609.76,0.27211432]
[1743510520633,0.624,611.37,609.78,0.32798714]
[1743510520829,0.624,611.37,609.79,0.27211432]
[1743510521027,0.624,611.37,609.81,0.327971]
[1743510521227,0.624,611.37,609.82,0.27211432]
[1743510521432,0.624,611.37,609.84,0.32795487]
[1743510521629,0.624,611.37,609.85,0.27211432]
[1743510521832,0.624,611.37,609.87,0.32793874]
[1743510522033,0.624,611.37,609.88,0.27211432]
[1743510522334,0.624,611.37,609.9,0.32792261]
[1743510522530,0.624,611.37,609.91,0.27211432]
[1743510522728,0.624,611.37,609.93,0.32790648]
[1743510522928,0.624,611.37,609.94,0.27211432]
[1743510523230,0.624,611.37,609.96,0.32789035]
[1743510523436,0.624,611.37,609.97,0.27211432]
[1743510523637,0.624,611.37,609.99,0.32787422]
[1743510523835,0.28482683,611.36,610.0,0.27211432]
[1743510524138,0.28482683,611.36,610.02,0.3278581]
[1743510524338,0.28482683,611.36,610.03,0.27211432]
[1743510524536,0.28482683,611.36,610.05,0.32784198]
[1743510524735,0.28482683,611.36,610.06,0.27211432]
[1743510524937,0.28482683,611.36,610.08,0.32782585]
[1743510525138,0.28482683,611.36,610.09,0.27211432]
[1743510525337,0.28482683,611.36,610.11,0.32780973]
[1743510525537,0.28482683,611.36,610.12,0.27211432]
[1743510525734,0.28482683,611.36,610.14,0.32779362]
[1743510525938,0.28482683,611.36,610.15,0.27211432]
[1743510526133,0.28482683,611.36,610.17,0.3277775]
[1743510526337,0.624,611.37,610.18,0.27211432]
[1743510526537,0.624,611.37,610.2,0.32776138]
[1743510526737,0.624,611.37,610.21,0.27211432]
[1743510527434,0.624,611.37,610.23,0.32774527]
[1743510527639,0.2847977,611.36,610.24,0.27200887]
[1743510527840,0.2847977,611.36,610.26,0.32772916]
[1743510528040,0.2847977,611.36,610.27,0.27200887]
[1743510528340,0.2847977,611.36,610.29,0.32771305]
[1743510528539,0.2847977,611.36,610.3,0.27200887]
[1743510528740,0.2847977,611.36,610.32,0.32769694]
[1743510529038,0.998,611.35,610.33,0.27200887]
[1743510529235,1.075,611.35,610.35,0.32768083]
[1743510529442,1.075,611.35,610.36,0.27200887]
[1743510529643,1.075,611.35,610.38,0.32766473]
[1743510529840,1.075,611.35,610.39,0.27200887]
[1743510530038,1.075,611.35,610.41,0.32764862]
[1743510530237,1.075,611.35,610.42,0.27200887]
[1743510530437,1.075,611.35,610.44,0.32763252]
[1743510530640,1.075,611.35,610.45,0.27200887]
[1743510530839,1.075,611.35,610.47,0.32761642]
[1743510531037,1.075,611.35,610.48,0.27203568]
[1743510531241,1.075,611.35,610.5,0.32760032]
[1743510531541,0.817,611.34,610.51,0.27203568]
[1743510531741,0.817,611.34,610.53,0.32758423]
[1743510531942,0.817,611.34,610.54,0.27203568]
[1743510532145,0.817,611.34,610.55,0.32757349]
[1743510532445,0.173,611.33,610.56,0.27203568]
[1743510532643,0.173,611.33,610.57,0.32756276]
[1743510532844,0.173,611.33,610.58,0.27203568]
[1743510533038,0.173,611.33,610.59,0.32755203]
[1743510533239,0.173,611.33,610.6,0.27203568]
[1743510533443,0.173,611.33,610.61,0.32754131]
[1743510533743,0.28475691,611.32,610.62,0.27203568]
[1743510533939,0.28475691,611.32,610.62,0.32753594]
[1743510536749,1.0877856,611.31,610.62,0.32753594]
[1743510537248,0.28475691,611.32,610.62,0.32753594]
[1743510538047,1.08801437,611.31,610.62,0.32753594]
[1743510538647,0.28499828,611.3,610.62,0.32753594]
[1743510541450,0.173,611.33,610.62,0.32753594]
[1743510541649,0.28499011,611.29,610.63,0.27228729]
[1743510543548,0.28499011,611.29,610.62,0.32753594]
[1743510543749,0.28499011,611.29,610.63,0.27239859]
[1743510544350,0.817,611.34,610.63,0.27239859]
[1743510544746,0.2847942,611.28,610.64,0.27235058]
[1743510544953,0.2847942,611.28,610.63,0.27235058]
[1743510545149,0.2847942,611.28,610.64,0.27235058]
[1743510545346,0.2847942,611.28,610.63,0.2723279]
[1743510545544,0.2847942,611.28,610.62,0.32753594]
[1743510545748,0.2847942,611.28,610.63,0.27232603]
[1743510546650,0.2847942,611.28,610.62,0.32753594]
[1743510547048,1.26402658,611.27,610.62,0.32753594]
[1743510547451,2.4507803,611.26,610.62,0.32753594]
[1743510547652,1.35875372,611.25,610.62,0.32753594]
[1743510547846,1.35875372,611.24,610.62,0.32753594]
[1743510548045,1.09202658,611.24,610.62,0.32753594]
[1743510548751,1.37704353,611.23,610.62,0.32753594]
[1743510549151,1.09202658,611.22,610.62,0.32753594]
[1743510549352,1.09202658,611.21,610.62,0.32753594]
[1743510549547,2.16102658,611.21,610.62,0.32753594]
[1743510549753,1.09202658,611.2,610.62,0.32753594]
[1743510550654,0.28503329,611.19,610.62,0.32753594]
[1743510551650,0.28503329,611.19,610.63,0.27253664]
[1743510552553,0.28503329,611.19,610.62,0.32753594]
[1743510552755,0.28503329,611.19,610.63,0.27254291]
[1743510555750,1.20403329,611.19,610.62,0.32753594]
[1743510555954,1.20403329,611.19,610.63,0.27241729]
[1743510556452,0.919,611.19,610.63,0.27241729]
[1743510557354,0.28481401,611.18,610.63,0.27241729]
[1743510557955,0.077,611.17,610.63,0.27241729]
[1743510558858,0.077,611.17,610.62,0.32753594]
[1743510559052,0.077,611.17,610.63,0.27237304]
[1743510560759,1.09382535,611.16,610.63,0.27237304]
[1743510561460,1.09382535,611.15,610.63,0.27237304]
[1743510561660,1.09382535,611.15,610.62,0.32753594]
[1743510561960,1.09382535,611.14,610.62,0.32753594]
[1743510562365,1.09382535,611.13,610.62,0.32753594]
[1743510563063,1.09382535,611.12,610.62,0.32753594]
[1743510563461,2.45427918,611.11,609.29,2.50262241]
[1743510563662,1.36045383,611.1,609.31,0.32824014]
[1743510563856,1.36045383,611.09,609.32,0.27268854]
[1743510564060,1.36045383,611.08,609.34,0.32822398]
[1743510564261,1.36045383,611.07,609.34,0.32822398]
[1743510564457,1.36045383,611.06,609.35,0.27268854]
[1743510564664,1.09382535,611.06,609.37,0.32820782]
[1743510564860,1.09382535,611.06,609.38,0.27268854]
[1743510565061,1.36026112,611.05,609.4,0.32819166]
[1743510565265,1.09382535,611.04,609.41,0.27268854]
[1743510565466,1.09382535,611.04,609.43,0.3281755]
[1743510565668,1.09382535,611.03,609.44,0.27268854]
[1743510565969,1.09382535,611.03,609.46,0.32815935]
[1743510566169,1.09382535,611.03,609.47,0.27268854]
[1743510566366,1.09382535,611.03,609.3,0.2850438]
[1743510566367,1.09382535,611.03,609.49,0.3281432]
[1743510566567,1.09382535,611.02,609.5,0.27268854]
[1743510566765,1.09382535,611.02,609.52,0.32812705]
[1743510566965,1.09382535,611.01,609.53,0.27268854]
[1743510567170,1.78782535,611.01,609.53,0.27268854]
[1743510567371,1.78782535,611.01,609.55,0.3281109]
[1743510567570,1.09382535,611.0,609.56,0.27268854]
[1743510567769,1.37887849,611.0,609.58,0.32809475]
[1743510567969,1.35947854,610.99,609.59,0.27268854]
[1743510568167,2.45327744,610.98,609.61,0.3280786]
[1743510568370,1.09382535,610.98,609.62,0.27265536]
[1743510568571,1.35899418,610.97,609.64,0.32806246]
[1743510568771,0.28505314,610.97,609.65,0.27265536]
[1743510568971,1.09382535,610.96,609.67,0.32804632]
[1743510569272,1.09382535,610.95,609.68,0.27265536]
[1743510569467,1.09382535,610.95,609.7,0.32803017]
[1743510569671,1.09382535,610.94,609.71,0.27265536]
[1743510569870,1.09382535,610.94,609.73,0.32801403]
[1743510570172,0.28505314,610.97,609.74,0.27270127]
[1743510570369,0.28505314,610.97,609.76,0.3279979]
[1743510570566,0.28505314,610.97,609.77,0.27270127]
[1743510570765,0.28505314,610.97,609.79,0.32798176]
[1743510570968,0.28505314,610.97,609.8,0.27270127]
[1743510571170,0.28505314,610.97,609.82,0.32796562]
[1743510571371,0.694,611.01,609.83,0.27270127]
[1743510571672,0.694,611.01,609.85,0.32794949]
[1743510571869,0.694,611.01,609.86,0.27269061]
[1743510572067,0.694,611.01,609.88,0.32793336]
[1743510572266,0.694,611.01,609.89,0.27264954]
[1743510572673,0.28500528,611.0,609.89,0.27264954]
[1743510572869,0.28500528,611.0,609.91,0.32791723]
[1743510573074,0.28500528,611.0,609.92,0.27264954]
[1743510573474,0.28500528,611.0,609.91,0.32791723]
[1743510573776,0.28500528,611.0,609.92,0.27273443]
[1743510574376,0.694,611.01,609.94,0.3279011]
[1743510574569,0.172,610.99,609.95,0.27273443]
[1743510574767,0.45700178,610.99,609.97,0.32788497]
[1743510574973,0.45700178,610.99,609.98,0.27273443]
[1743510575173,0.45700178,610.99,609.99,0.32787422]
[1743510575380,0.45700178,610.99,610.0,0.27273443]
[1743510575577,0.45700178,610.99,610.01,0.32786347]
[1743510575773,0.45700178,610.99,610.02,0.27273443]
[1743510576074,0.45700178,610.99,610.03,0.32785272]
[1743510576577,0.45700178,610.99,610.04,0.27266998]
[1743510576770,0.45700178,610.99,610.06,0.3278366]
[1743510576973,0.45700178,610.99,610.07,0.27266998]
[1743510577171,0.45700178,610.99,610.09,0.32782048]
[1743510577374,0.911,610.98,610.1,0.27266998]
[1743510577676,1.19594811,610.98,610.12,0.32780436]
[1743510577877,1.19594811,610.98,610.13,0.27266998]
[1743510578072,1.19594811,610.98,610.14,0.32779362]
[1743510578275,1.19594811,610.98,610.15,0.27266998]
[1743510578471,1.19594811,610.98,610.16,0.32778287]
[1743510578673,1.19594811,610.98,610.17,0.27266998]
[1743510578871,1.19594811,610.98,610.18,0.32777213]
[1743510579077,1.19594811,610.98,610.19,0.27266998]
[1743510579276,1.19594811,610.98,610.2,0.32776138]
[1743510579474,1.19594811,610.98,610.21,0.27260939]
[1743510579672,1.19594811,610.98,610.22,0.32775064]
[1743510579879,1.19594811,610.98,610.23,0.27260939]
[1743510580074,1.19594811,610.98,610.24,0.3277399]
[1743510580380,0.911,610.98,610.25,0.27260939]
[1743510580577,0.911,610.98,610.26,0.32772916]
[1743510580779,0.911,610.98,610.27,0.27260939]
[1743510580973,0.911,610.98,610.28,0.32771842]
[1743510581178,0.911,610.98,610.29,0.27260939]
[1743510581377,0.911,610.98,610.3,0.32770768]
[1743510581579,0.911,610.98,610.31,0.27260939]
[1743510581780,0.28492711,610.97,610.31,0.6003117]
[1743510581981,0.28492711,610.97,610.32,0.27260939]
[1743510583287,0.28492711,610.97,610.33,0.32769157]
[1743510583479,0.911,610.98,610.34,0.27260939]
[1743510583677,0.28490961,610.96,610.35,0.32768083]
[1743510583874,0.28490961,610.96,610.36,0.27260939]
[1743510584080,0.28490961,610.96,610.37,0.3276701]
[1743510584275,0.28490961,610.96,610.38,0.27260939]
[1743510584980,0.28490961,610.96,610.37,0.3276701]
[1743510585883,0.28490961,610.96,610.38,0.27273764]
[1743510586584,0.076,610.95,610.38,0.27273764]
[1743510588179,0.889,610.95,610.38,0.27273764]
[1743510590487,0.889,610.95,610.37,0.3276701]
[1743510592284,1.09123557,610.94,610.37,0.3276701]
[1743510592679,0.28513489,610.93,610.37,0.3276701]
[1743510595483,1.06,610.95,609.0,2.50262241]
[1743510595680,0.28515124,610.92,609.02,0.32839644]
[1743510595882,0.28515124,610.92,609.03,0.27287689]
[1743510596085,0.28515124,610.92,609.05,0.32838026]
[1743510596282,0.28515124,610.92,609.06,0.27287689]
[1743510596486,0.28515124,610.92,609.08,0.32836409]
[1743510596682,0.28515124,610.92,609.09,0.27287689]
[1743510596885,0.28515124,610.92,609.11,0.32834791]
[1743510597088,0.28515124,610.92,609.12,0.27287689]
[1743510597293,0.28515124,610.92,609.14,0.32833174]
[1743510597587,1.35700266,610.91,609.15,0.27287689]
[1743510597788,1.35706648,610.9,609.17,0.32831557]
[1743510598088,1.35706164,610.89,609.18,0.27287689]
[1743510598288,1.35675692,610.88,609.2,0.3282994]
[1743510598482,1.06,610.95,609.21,0.27287689]
[1743510598483,1.09114625,610.89,609.21,0.27287689]
[1743510598686,0.28514774,610.87,609.23,0.32828324]
[1743510598986,0.28514774,610.87,609.24,0.27287689]
[1743510599182,0.28514774,610.87,609.26,0.32826707]
[1743510599387,1.09114625,610.86,609.27,0.27287689]
[1743510599582,1.09114625,610.86,609.29,0.32825091]
[1743510599784,1.09114625,610.86,609.3,0.27287689]
[1743510599984,1.09114625,610.85,609.32,0.32823475]
[1743510600189,1.09114625,610.85,609.33,0.27287689]
[1743510600393,0.28514774,610.87,609.35,0.32821859]
[1743510600889,0.28514774,610.87,609.36,0.27287689]
[1743510601087,0.28514774,610.87,609.38,0.32820243]
[1743510601390,1.06,610.95,609.39,0.27287689]
[1743510601590,1.06,610.95,609.41,0.32818627]
[1743510601788,0.28510685,610.86,609.42,0.27287689]
[1743510601991,1.06,610.95,609.44,0.32817012]
[1743510602185,1.06,610.95,609.45,0.27287689]
[1743510602390,1.06,610.95,609.47,0.32815396]
[1743510602691,1.06,610.95,609.48,0.27283581]
[1743510602892,1.06,610.95,609.5,0.32813781]
[1743510603194,1.06,610.95,609.51,0.27283581]
[1743510603396,0.28510919,610.94,609.53,0.32812166]
[1743510603592,0.28510919,610.94,609.54,0.27283581]
[1743510603786,0.28510919,610.94,609.56,0.32810551]
[1743510603989,0.28510919,610.94,609.57,0.27283581]
[1743510604190,0.28510919,610.94,609.59,0.32808937]
[1743510604492,1.06,610.95,609.6,0.27299317]
[1743510604685,0.28511036,610.93,609.62,0.32807322]
[1743510604889,0.28511036,610.93,609.63,0.27299317]
[1743510605089,0.28511036,610.93,609.65,0.32805708]
[1743510605289,0.85,610.92,609.66,0.27299317]
[1743510605491,0.85,610.92,609.68,0.32804093]
[1743510605788,0.85,610.92,609.69,0.27299317]
[1743510605992,0.85,610.92,609.7,0.32803017]
[1743510606187,0.85,610.92,609.71,0.27299317]
[1743510606389,0.85,610.92,609.72,0.32801941]
[1743510606590,0.85,610.92,609.73,0.27299317]
[1743510606787,0.85,610.92,609.74,0.32800865]
[1743510606990,0.85,610.92,609.75,0.27299317]
[1743510607594,0.85,610.92,609.76,0.3279979]
[1743510607794,0.36109284,610.91,609.77,0.27299317]
[1743510608093,0.53209284,610.91,609.78,0.32798714]
[1743510608300,1.09080797,610.9,609.79,0.27299317]
[1743510608591,1.09080797,610.9,609.8,0.32797638]
[1743510608796,1.09080797,610.89,609.81,0.27299317]
[1743510608990,1.09080797,610.89,609.82,0.32796562]
[1743510609193,1.09080797,610.89,609.83,0.27299317]
[1743510609393,1.09080797,610.88,609.84,0.32795487]
[1743510609594,1.09080797,610.88,609.85,0.2730386]
[1743510609794,1.09080797,610.88,609.86,0.32794411]
[1743510609990,1.09080797,610.87,609.87,0.2730386]
[1743510610190,1.09080797,610.87,609.88,0.32793336]
[1743510610395,1.09080797,610.86,609.89,0.2730386]
[1743510611297,1.69880797,610.85,609.89,0.2730386]
[1743510611696,1.09080797,610.84,609.89,0.2730386]
[1743510611897,1.09080797,610.84,609.89,0.60096658]
[1743510612097,1.09080797,610.83,609.9,0.2730386]
[1743510612593,1.09080797,610.84,609.9,0.2730386]
[1743510612793,1.09080797,610.83,609.9,0.2730386]
[1743510613197,1.09080797,610.82,609.9,0.2730386]
[1743510613699,2.73108714,610.81,609.89,0.32792798]
[1743510613898,2.44594875,610.8,609.89,0.32792798]
[1743510614100,1.35514078,610.79,609.89,0.32792798]
[1743510614300,1.09080797,610.79,609.89,0.32792798]
[1743510614501,1.35514078,610.78,609.89,0.32792798]
[1743510614901,1.35514078,610.77,609.89,0.32792798]
[1743510615101,1.35514078,610.76,609.89,0.32792798]
[1743510615400,0.28513839,610.81,609.89,0.32792798]
[1743510615401,2.44594875,610.75,609.89,0.32792798]
[1743510615600,1.35514078,610.74,609.89,0.32792798]
[1743510615794,2.44594875,610.73,609.89,0.32792798]
[1743510615994,1.35514078,610.72,609.9,0.27324136]
[1743510616199,1.35514078,610.71,609.9,0.27324136]
[1743510616402,1.35514078,610.72,609.9,0.27324136]
[1743510616596,1.09080797,610.7,609.9,0.27324136]
[1743510616896,2.44594875,610.7,609.89,0.32792798]
[1743510617100,1.35514078,610.69,609.9,0.27323378]
[1743510617298,2.44594875,610.69,609.9,0.27323378]
[1743510617498,1.35514078,610.68,609.9,0.27323378]
[1743510617699,1.35514078,610.67,609.9,0.27323378]
[1743510617898,1.09080797,610.68,609.9,0.27323378]
[1743510618298,1.09080797,610.67,609.9,0.27323378]
[1743510619102,1.09080797,610.66,609.9,0.27323378]
[1743510619501,1.09080797,610.65,609.9,0.27323378]
[1743510619900,1.35467961,610.79,609.9,0.27323378]
[1743510620201,1.35467961,610.78,609.9,0.27323378]
[1743510620401,2.44427749,610.77,609.9,0.27323378]
[1743510620601,1.35467961,610.76,609.9,0.27323378]
[1743510620901,1.35505379,610.75,609.9,0.27323378]
[1743510621202,2.44465167,610.74,609.9,0.27323378]
[1743510621501,1.35505379,610.73,609.9,0.27323378]
[1743510621901,1.08959788,610.72,609.9,0.27323378]
[1743510622102,2.44465167,610.72,609.9,0.27323378]
[1743510622302,1.08959788,610.72,609.9,0.27323378]
[1743510622602,2.44465167,610.71,609.9,0.27323378]
[1743510622801,2.44465167,610.7,609.89,0.32792798]
[1743510623000,1.35505379,610.69,609.89,0.32792798]
[1743510623202,2.44465167,610.68,609.89,0.32792798]
[1743510623405,1.35505379,610.67,609.89,0.32792798]
[1743510623604,2.44465167,610.66,609.89,0.32792798]
[1743510623804,1.35505379,610.65,609.89,0.32792798]
[1743510623999,2.44465167,610.64,609.9,0.27334383]
[1743510624400,1.08959788,610.64,609.9,0.27334383]
[1743510624704,1.33659788,610.63,609.9,0.27334383]
[1743510624902,1.08959788,610.62,609.9,0.27334383]
[1743510625505,1.08959788,610.61,609.9,0.27334383]
[1743510625707,1.37475263,610.61,609.9,0.27334383]
[1743510625909,1.08959788,610.6,609.9,0.27334383]
[1743510626402,0.28515475,610.61,609.9,0.27334383]
[1743510627412,0.28515475,610.61,609.89,0.32792798]
[1743510627712,0.872,610.6,609.9,0.27320722]
[1743510628309,0.744,610.59,609.9,0.27320722]
[1743510628711,0.28515358,610.58,609.9,0.27320722]
[1743510630411,1.35418934,610.57,609.9,0.27320722]
[1743510630612,1.35433446,610.56,609.9,0.27320722]
[1743510630914,0.28515358,610.58,609.9,0.27320722]
[1743510630915,2.44336157,610.55,609.9,0.27320722]
[1743510631208,2.44336157,610.54,609.9,0.27320722]
[1743510631414,1.35433446,610.53,609.9,0.27320722]
[1743510631608,0.744,610.59,609.9,0.27320722]
[1743510631609,2.44336157,610.52,609.9,0.27320722]
[1743510631815,1.08902711,610.52,609.9,0.27320722]
[1743510632007,1.08902711,610.51,609.89,0.32792798]
[1743510632206,1.08902711,610.51,609.9,0.27331697]
[1743510632411,2.4431022,610.5,608.58,2.46707177]
[1743510632606,1.35407509,610.49,608.68,0.32857987]
[1743510632913,2.4431022,610.48,608.69,0.27345969]
[1743510633108,1.35407509,610.47,608.71,0.32856368]
[1743510633314,2.4431022,610.46,608.72,0.27345969]
[1743510633512,1.35407509,610.45,608.73,0.27345969]
[1743510633708,1.35407509,610.44,608.74,0.27345969]
[1743510633914,1.08902711,610.43,608.76,0.32853669]
[1743510634211,1.08902711,610.42,608.77,0.27345969]
[1743510634414,1.08902711,610.42,608.79,0.3285205]
[1743510634617,1.08902711,610.41,608.8,0.27346391]
[1743510634918,1.35332292,610.4,608.8,0.27346391]
[1743510635216,1.35332292,610.39,608.8,0.27346391]
[1743510635416,1.35332292,610.38,608.8,0.27346391]
[1743510635716,1.35332292,610.37,608.82,0.32850431]
[1743510635914,1.35332292,610.37,608.83,0.27346391]
[1743510635915,1.35332292,610.36,608.83,0.27346391]
[1743510636116,1.35332292,610.35,608.85,0.32848813]
[1743510636315,2.44235003,610.34,608.86,0.27346391]
[1743510636616,1.35241386,610.33,608.86,0.27346391]
[1743510636817,1.08902711,610.32,608.86,0.27346391]
[1743510637013,1.08902711,610.32,608.88,0.32847194]
[1743510637213,1.08902711,610.32,608.89,0.27346391]
[1743510637409,1.08902711,610.31,608.91,0.32845576]
[1743510637810,1.08902711,610.3,608.92,0.27346391]
[1743510638417,1.08902711,610.3,608.94,0.32843958]
[1743510638617,0.28538977,610.31,608.95,0.27346391]
[1743510638812,0.28538977,610.31,608.97,0.3284234]
[1743510639015,0.28538977,610.31,608.98,0.27346391]
[1743510639215,0.28538977,610.31,609.0,0.32840722]
[1743510639418,0.28538977,610.31,609.01,0.27346391]
[1743510639614,0.28538977,610.31,609.03,0.32839104]
[1743510639818,0.28538977,610.31,609.04,0.27346391]
[1743510640019,0.28538977,610.31,609.05,0.27346391]
[1743510640318,0.28538977,610.31,609.07,0.32836948]
[1743510640520,0.28538977,610.31,609.08,0.27346391]
[1743510640720,0.28538977,610.31,609.1,0.3283533]
[1743510640917,0.28538977,610.31,609.11,0.27346391]
[1743510641218,0.28538977,610.31,609.13,0.32833713]
[1743510641422,0.28538977,610.31,609.14,0.27346391]
[1743510641612,0.28538977,610.31,608.75,0.28538977]
[1743510641613,0.28538977,610.31,609.16,0.32832096]
[1743510641814,0.28538977,610.31,609.17,0.27346391]
[1743510642020,0.28538977,610.31,609.19,0.32830479]
[1743510642222,0.28538977,610.31,609.2,0.27346391]
[1743510642415,0.28538977,610.31,609.22,0.32828863]
[1743510642621,0.28538977,610.31,609.23,0.27346391]
[1743510642821,0.28538977,610.31,609.25,0.32827246]
[1743510643020,0.28538977,610.31,609.26,0.27346391]
[1743510643221,0.28538977,610.31,609.28,0.3282563]